fUSD/lending_fUSD_20260227
["ID","MTS","AMOUNT","RATE_DAILY","PERIOD"]
[406789626,1772195433158,-457.08298048,0.00010026,2]
[406789627,1772195433168,-500.0,0.00010026,2]
[406789628,1772195433179,-489.0,0.00010026,2]
[406789629,1772195433188,-500.0,0.00010081,2]
[406789630,1772195433198,-500.0,0.00010081,2]
[406789631,1772195433208,-500.0,0.00010081,2]
[406789632,1772195433218,-150.0,0.00010081,2]
[406789633,1772195433228,-489.0,0.00010081,2]
[406789634,1772195433238,-499.388926,0.00010093,2]
[406789635,1772195433248,-150.0,0.00010093,2]
[406789636,1772195433258,-157.064432,0.00010093,2]
[406789637,1772195433267,-164.128864,0.00010093,2]
[406789638,1772195433276,-171.193296,0.00010093,2]
[406789639,1772195433287,-178.257728,0.00010093,2]
[406789640,1772195433298,-185.322161,0.00010093,2]
[406789641,1772195433308,-192.386593,0.00010093,2]
[406789642,1772195433318,-199.451025,0.00010093,2]
[406789643,1772195433327,-206.515457,0.00010093,2]
[406789644,1772195433335,-213.57989,0.00010093,2]
[406789645,1772195433346,-185.4829359,0.00010123,2]
[406789646,1772195433356,-500.0,0.00010136,2]
[406789647,1772195433366,-500.0,0.00010136,2]
[406789648,1772195433376,-500.0,0.00010136,2]
[406789649,1772195433388,-489.0,0.00010136,2]
[406789650,1772195433398,-500.0,0.00010136,2]
[406789651,1772195433408,-497.09622115,0.0001019,2]
[406789652,1772195433418,-150.0,0.00010191,2]
[406789653,1772195433427,-500.0,0.00010191,2]
[406789654,1772195433436,-489.0,0.00010191,2]
[406789655,1772195433446,-500.0,0.00010245,2]
[406789656,1772195433456,-489.0,0.00010245,2]
[406789657,1772195433466,-1800.06,0.00010274,2]
[406789658,1772195433475,-500.0,0.000103,2]
[406789659,1772195433484,-489.0,0.000103,2]
[406789660,1772195433493,-888.46058708,0.000103,2]
[406789661,1772195433503,-500.0,0.000103,2]
[406789662,1772195433513,-500.0,0.000103,2]
[406789663,1772195433523,-500.0,0.000103,2]
[406789664,1772195433532,-500.0,0.000103,2]
[406789665,1772195433542,-500.0,0.000103,2]
[406789666,1772195433551,-980.56702483,0.000103,2]
[406789667,1772195433561,-500.0,0.000103,2]
[406789668,1772195433571,-500.0,0.000103,2]
[406789669,1772195433580,-563.07260655,0.000103,2]
[406789670,1772195433590,-869.88788903,0.000103,2]
[406789671,1772195433600,-500.0,0.000103,2]
[406789672,1772195433612,-500.0,0.000103,2]
[406789673,1772195433622,-500.0,0.000103,2]
[406789674,1772195433634,-500.0,0.000103,2]
[406789675,1772195433643,-500.0,0.000103,2]
[406789676,1772195433654,-500.0,0.000103,2]
[406789677,1772195433664,-600.0,0.000103,2]
[406789678,1772195433675,-500.0,0.000103,2]
[406789679,1772195433690,-500.0,0.000103,2]
[406789680,1772195433702,-744.54912065,0.000103,2]
[406789681,1772195433713,-503.2038976,0.000103,2]
[406789682,1772195433726,-500.0,0.000103,2]
[406789683,1772195433737,-500.0,0.000103,2]
[406789684,1772195433747,-500.0,0.000103,2]
[406789685,1772195433757,-500.0,0.000103,2]
[406789686,1772195433767,-980.56702483,0.000103,2]
[406789687,1772195433776,-500.0,0.00010355,2]
[406789688,1772195433788,-489.0,0.00010355,2]
[406789689,1772195433811,-3292.0,0.00010358,2]
[406789690,1772195433820,-736.0,0.00010358,2]
[406789691,1772195433831,-5213.0,0.00010384,2]
[406789692,1772195433840,-500.0,0.0001041,2]
[406789693,1772195433850,-489.0,0.0001041,2]
[406789694,1772195433861,-160.7654888,0.0001041,2]
[406789695,1772195433871,-15432.0,0.00010438,2]
[406789696,1772195433882,-500.0,0.00010465,2]
[406789697,1772195433892,-489.0,0.00010465,2]
[406789698,1772195433902,-9999.99,0.00010475,2]
[406789699,1772195433912,-2657.75,0.00010475,2]
[406789700,1772195433922,-2374.92525305,0.00010475,2]
[406789701,1772195433937,-27625.06474695,0.00010475,2]
[406789702,1772195433947,-1334.0,0.00010503,2]
[406789703,1772195433957,-500.0,0.00010519,2]
[406789704,1772195433976,-489.0,0.00010519,2]
[406789705,1772195433997,-250.0,0.00010537,2]
[406789706,1772195434006,-1000.0,0.00010547,2]
[406789707,1772195434016,-1000.0,0.00010547,2]
[406789708,1772195434026,-1800.06,0.00010548,2]
[406789709,1772195434036,-500.0,0.00010574,2]
[406789710,1772195434046,-489.0,0.00010574,2]
[406789711,1772195434056,-500.0,0.00010629,2]
[406789712,1772195434066,-489.0,0.00010629,2]
[406789713,1772195434077,-586.0,0.00010684,2]
[406789714,1772195434087,-489.0,0.00010684,2]
[406789715,1772195434100,-489.0,0.00010739,2]
[406789716,1772195434110,-489.0,0.00010793,2]
[406789717,1772195434120,-1800.06,0.00010822,2]
[406789718,1772195434130,-489.0,0.00010848,2]
[406789719,1772195434142,-373.33,0.000109,2]
[406789720,1772195434152,-489.0,0.00010903,2]
[406789721,1772195434161,-489.0,0.00010958,2]
[406789722,1772195434171,-150.0,0.00010959,2]
[406789723,1772195434181,-500.0,0.00010999,2]
[406789724,1772195434190,-200.0,0.00011,2]
[406789725,1772195434200,-489.0,0.00011012,2]
[406789726,1772195434209,-499.80649406,0.00011067,2]
[406789727,1772195434218,-1800.06,0.00011096,2]
[406789728,1772195434228,-1761.84729612,0.00011099,2]
[406789729,1772195434238,-1761.84729612,0.00011099,2]
[406789730,1772195434248,-158.03,0.00011103,2]
[406789731,1772195434257,-1512.33,0.00011129,2]
[406789732,1772195434267,-2383.69,0.00011267,2]
[406789733,1772195434276,-1561.0,0.00011294,2]
[406789734,1772195434286,-221.79640327,0.00011294,2]
[406789735,1772195434295,-172.0,0.00011316,2]
[406789736,1772195434305,-19680.59,0.0001132,2]
[406789737,1772195434315,-1576.0,0.00011339,2]
[406789738,1772195434325,-1800.06,0.0001137,2]
[406789739,1772195434334,-457.0,0.00011393,2]
[406789740,1772195434344,-649.0,0.00011394,2]
[406789741,1772195434353,-420.0,0.00011562,2]
[406789742,1772195434362,-1800.06,0.00011644,2]
[406789743,1772195434372,-1000.0,0.00011719,2]
[406789744,1772195434381,-1000.0,0.00011719,2]
[406789745,1772195434390,-1800.06,0.00011918,2]
[406789746,1772195434400,-662.94329481,0.00012109,2]
[406789747,1772195434413,-624.236157,0.00012111,2]
[406789748,1772195434423,-2272.374313,0.00012111,2]
[406789749,1772195434433,-1800.06,0.00012192,2]
[406789750,1772195434442,-1800.06,0.00012466,2]
[406789751,1772195434451,-524.394073,0.00012513,2]
[406789752,1772195434460,-1800.06,0.0001274,2]
[406789753,1772195434469,-151.0,0.00012887,2]
[406789754,1772195434478,-500.0,0.0001289,2]
[406789755,1772195434488,-500.0,0.0001289,2]
[406789756,1772195434497,-500.0,0.0001289,2]
[406789757,1772195434506,-500.0,0.0001289,2]
[406789758,1772195434514,-543.75451416,0.0001289,2]
[406789759,1772195434521,-500.0,0.0001289,2]
[406789760,1772195434528,-500.0,0.0001289,2]
[406789761,1772195434535,-869.50668288,0.0001289,2]
[406789762,1772195434542,-500.0,0.0001289,2]
[406789763,1772195434549,-500.0,0.0001289,2]
[406789764,1772195434557,-500.0,0.0001289,2]
[406789765,1772195434565,-500.0,0.0001289,2]
[406789766,1772195434572,-500.0,0.0001289,2]
[406789767,1772195434580,-500.0,0.0001289,2]
[406789768,1772195434588,-500.0,0.0001289,2]
[406789769,1772195434596,-500.0,0.0001289,2]
[406789770,1772195434604,-500.0,0.0001289,2]
[406789771,1772195434611,-500.0,0.0001289,2]
[406789772,1772195434723,-500.0,0.0001289,2]
[406789773,1772195434730,-500.0,0.0001289,2]
[406789774,1772195434738,-500.0,0.0001289,2]
[406789775,1772195434746,-500.0,0.0001289,2]
[406789776,1772195434754,-500.0,0.0001289,2]
[406789777,1772195434760,-500.0,0.0001289,2]
[406789778,1772195434768,-500.0,0.0001289,2]
[406789779,1772195434775,-500.0,0.0001289,2]
[406789780,1772195434784,-500.0,0.0001289,2]
[406789781,1772195434791,-500.0,0.0001289,2]
[406789782,1772195434799,-500.0,0.0001289,2]
[406789783,1772195434808,-500.0,0.0001289,2]
[406789784,1772195434815,-500.0,0.0001289,2]
[406789785,1772195434824,-500.0,0.0001289,2]
[406789786,1772195434833,-500.0,0.0001289,2]
[406789787,1772195434843,-500.0,0.0001289,2]
[406789788,1772195434852,-500.0,0.0001289,2]
[406789789,1772195434862,-500.0,0.0001289,2]
[406789790,1772195434871,-500.0,0.0001289,2]
[406789791,1772195434883,-500.0,0.0001289,2]
[406789792,1772195434892,-500.0,0.0001289,2]
[406789793,1772195434902,-747.36498412,0.0001289,2]
[406789794,1772195434911,-1000.0,0.00012891,2]
[406789795,1772195434921,-1000.0,0.00012891,2]
[406789796,1772195434930,-150.99,0.00012893,2]
[406789797,1772195434939,-999.99,0.00012893,2]
[406789798,1772195434949,-9999.99,0.00012893,2]
[406789799,1772195434959,-150.99,0.00012893,2]
[406789800,1772195434968,-9999.99,0.00012893,2]
[406789801,1772195434978,-299.99,0.00012893,2]
[406789802,1772195434988,-1800.06,0.00013014,2]
[406789803,1772195434998,-1800.06,0.00013288,2]
[406789804,1772195435007,-1800.06,0.00013562,2]
[406789805,1772195435017,-500.0,0.00013698,2]
[406789806,1772195435027,-500.0,0.00013698,2]
[406789807,1772195435037,-500.0,0.00013698,2]
[406789808,1772195435047,-500.0,0.00013698,2]
[406789809,1772195435057,-500.0,0.00013698,2]
[406789810,1772195435067,-500.0,0.00013698,2]
[406789811,1772195435076,-500.0,0.00013698,2]
[406789812,1772195435086,-500.0,0.00013698,2]
[406789813,1772195435099,-500.0,0.00013698,2]
[406789814,1772195435109,-500.0,0.00013698,2]
[406789815,1772195435118,-500.0,0.00013698,2]
[406789816,1772195435128,-500.0,0.00013698,2]
[406789817,1772195435139,-500.0,0.00013698,2]
[406789818,1772195435149,-500.0,0.00013698,2]
[406789819,1772195435161,-500.0,0.00013698,2]
[406789820,1772195435172,-500.0,0.00013698,2]
[406789821,1772195435181,-500.0,0.00013698,2]
[406789822,1772195435191,-500.0,0.00013698,2]
[406789823,1772195435201,-500.0,0.00013698,2]
[406789824,1772195435210,-500.0,0.00013698,2]
[406789825,1772195435220,-500.0,0.00013698,2]
[406789826,1772195435229,-500.0,0.00013698,2]
[406789827,1772195435239,-500.0,0.00013698,2]
[406789828,1772195435249,-500.0,0.00013698,2]
[406789829,1772195435258,-500.0,0.00013698,2]
[406789830,1772195435269,-500.0,0.00013698,2]
[406789831,1772195435278,-500.0,0.00013698,2]
[406789832,1772195435288,-500.0,0.00013698,2]
[406789833,1772195435298,-500.0,0.00013698,2]
[406789834,1772195435307,-500.0,0.00013698,2]
[406789835,1772195435316,-500.0,0.00013698,2]
[406789836,1772195435326,-500.0,0.00013698,2]
[406789837,1772195435335,-404.27896317,0.00013698,2]
[406789838,1772195435345,-500.0,0.00013698,2]
[406789839,1772195435354,-500.0,0.00013698,2]
[406789840,1772195435364,-500.0,0.00013698,2]
[406789841,1772195435375,-500.0,0.00013698,2]
[406789842,1772195435385,-500.0,0.00013698,2]
[406789843,1772195435394,-500.0,0.00013698,2]
[406789844,1772195435404,-500.0,0.00013698,2]
[406789845,1772195435414,-500.0,0.00013698,2]
[406789846,1772195435423,-500.0,0.00013698,2]
[406789847,1772195435433,-500.0,0.00013698,2]
[406789848,1772195435442,-500.0,0.00013698,2]
[406789849,1772195435453,-500.0,0.00013698,2]
[406789850,1772195435463,-604.80928583,0.00013698,2]
[406789851,1772195435473,-500.0,0.00013698,2]
[406789852,1772195435483,-500.0,0.00013698,2]
[406789853,1772195435492,-500.0,0.00013698,2]
[406789854,1772195435502,-500.0,0.00013698,2]
[406789855,1772195435512,-500.0,0.00013698,2]
[406789856,1772195435521,-500.0,0.00013698,2]
[406789857,1772195435531,-500.0,0.00013698,2]
[406789858,1772195435540,-500.0,0.00013698,2]
[406789859,1772195435550,-500.0,0.00013698,2]
[406789860,1772195435560,-500.0,0.00013698,2]
[406789861,1772195435570,-500.0,0.00013698,2]
[406789862,1772195435579,-500.0,0.00013698,2]
[406789863,1772195435589,-500.0,0.00013698,2]
[406789864,1772195435598,-500.0,0.00013698,2]
[406789865,1772195435608,-500.0,0.00013698,2]
[406789866,1772195435618,-500.0,0.00013698,2]
[406789867,1772195435627,-500.0,0.00013698,2]
[406789868,1772195435637,-500.0,0.00013698,2]
[406789869,1772195435647,-500.0,0.00013698,2]
[406789870,1772195435657,-500.0,0.00013698,2]
[406789871,1772195435667,-383.3281671,0.00013698,2]
[406789872,1772195435676,-500.0,0.00013698,2]
[406789873,1772195435686,-500.0,0.00013698,2]
[406789874,1772195435695,-500.0,0.00013698,2]
[406789875,1772195435705,-500.0,0.00013698,2]
[406789876,1772195435715,-500.0,0.00013698,2]
[406789877,1772195435724,-500.0,0.00013698,2]
[406789878,1772195435733,-16301.24,0.00013699,2]
[406789879,1772195435743,-250.0,0.00013705,2]
[406789880,1772195435752,-1761.84729612,0.00013785,2]
[406789881,1772195435762,-1800.06,0.00013836,2]
[406789882,1772195435772,-1000.0,0.00014062,2]
[406789883,1772195435781,-424.10301208,0.00014062,2]
[406789884,1772195436353,-575.89698792,0.00014062,2]
[406789885,1772195436363,-1800.2049579,0.0001411,2]
[406789886,1772195436372,-57770.74,0.00014206,2]
[406789887,1772195436382,-200.0,0.00014246,2]
[406789888,1772195436391,-200.0,0.00014246,2]
[406789889,1772195436400,-200.0,0.00014246,2]
[406789890,1772195436409,-200.0,0.00014246,2]
[406789891,1772195436418,-200.0,0.00014246,2]
[406789892,1772195436427,-247.02426,0.00014246,2]
[406789893,1772195436437,-500.0,0.00014504,2]
[406789894,1772195436446,-500.0,0.00014504,2]
[406789895,1772195436455,-150.0,0.00014596,2]
[406789896,1772195436464,-150.0,0.00014597,2]
[406789897,1772195436475,-150.0,0.00014598,2]
[406789898,1772195436485,-150.0,0.00014599,2]
[406789899,1772195436504,-150.0,0.000146,2]
[406789900,1772195436516,-150.0,0.00014601,2]
[406789901,1772195436525,-150.0,0.00014602,2]
[406789902,1772195436536,-150.0,0.00014603,2]
[406789903,1772195436545,-150.0,0.00014604,2]
[406789904,1772195436555,-150.0,0.00014605,2]
[406789905,1772195436564,-207.967867,0.00014606,2]
[406789906,1772195436573,-500.0,0.00014627,2]
[406789907,1772195436583,-500.0,0.00014627,2]
[406789908,1772195436592,-500.0,0.00014769,2]
[406789909,1772195436602,-2022.31,0.00014853,2]
[406789910,1772195436611,-509.0,0.0001489,2]
[406789911,1772195436621,-250.0,0.00015,2]
[406789912,1772195436630,-439.0,0.00015,10]
[406789913,1772195436640,-500.0,0.00015,10]
[406789914,1772195436652,-500.0,0.00015,10]
[406789915,1772195436662,-500.0,0.00015,10]
[406789916,1772195436673,-500.0,0.00015,10]
[406789917,1772195436683,-500.0,0.00015,10]
[406789918,1772195436692,-462.08,0.00015068,2]
[406789919,1772195436702,-160.0,0.00015125,2]
[406789920,1772195436712,-174.00015664,0.00015125,2]
[406789921,1772195436722,-749.083389,0.00015139,7]
[406789922,1772195436731,-2726.849175,0.00015139,7]
[406789923,1772195436741,-462.08,0.00015342,2]
[406789924,1772195436752,-550.5,0.00015616,2]
[406789925,1772195436762,-707.960985,0.00015816,7]
[406789926,1772195436773,-500.0,0.00015839,2]
[406789927,1772195436782,-297.82549676,0.00016401,2]
[406789928,1772195436792,-158.83553081,0.00016438,2]
[406789929,1772195436802,-500.0,0.00016503,2]
[406789930,1772195436811,-500.0,0.00016503,2]
[406789931,1772195436823,-500.0,0.00016503,2]
[406789932,1772195436833,-500.0,0.00016503,2]
[406789933,1772195436842,-500.0,0.00016503,2]
[406789934,1772195436852,-500.0,0.00016503,2]
[406789935,1772195436861,-500.0,0.00016503,2]
[406789936,1772195436870,-500.0,0.00016503,2]
[406789937,1772195436880,-500.0,0.00016503,2]
[406789938,1772195436890,-500.0,0.00016503,2]
[406789939,1772195436899,-500.0,0.00016503,2]
[406789940,1772195436909,-500.0,0.00016503,2]
[406789941,1772195436919,-500.0,0.00016503,2]
[406789942,1772195436928,-593.89214064,0.00016503,2]
[406789943,1772195436938,-1747.980245,0.00016684,7]
[406789944,1772195436947,-165.5,0.00016712,2]
[406789945,1772195436956,-1761.84729612,0.00016785,2]
[406789946,1772195436966,-300.0,0.00017,2]
[406789947,1772195436975,-1819.47,0.000173,2]
[406789948,1772195436985,-662.94329481,0.00017658,2]
[406789949,1772195436994,-509.0,0.00017721,4]
[406789950,1772195437004,-500.0,0.00017808,2]
[406789951,1772195437013,-500.0,0.00017863,2]
[406789952,1772195437022,-623.5813736,0.00017899,2]
[406789953,1772195437032,-500.0,0.00017899,2]
[406789954,1772195437042,-500.0,0.00017918,2]
[406789955,1772195437053,-500.0,0.00017972,2]
[406789956,1772195437063,-500.0,0.00017973,2]
[406789957,1772195437073,-308.59204947,0.00017973,2]
[406789958,1772195437082,-520.55026084,0.00017973,2]
[406789959,1772195437093,-504.20237615,0.00017973,2]
[406789960,1772195437105,-500.0,0.00017999,2]
[406789961,1772195437115,-500.0,0.00017999,2]
[406789962,1772195437125,-400.0,0.00018027,2]
[406789963,1772195437135,-200.0,0.00018128,2]
[406789964,1772195437144,-1041.0,0.00018144,2]
[406789965,1772195437154,-5983.0,0.00018144,2]
[406789966,1772195437165,-1000.0,0.00018521,2]
[406789967,1772195437176,-373.33,0.00018873,2]
[406789968,1772195437186,-500.0,0.00018919,2]
[406789969,1772195437196,-1277.0,0.00019166,2]
[406789970,1772195437206,-921.0,0.00019166,2]
[406789971,1772195437216,-1211.0,0.00019166,2]
[406789972,1772195437226,-1761.84729612,0.00019785,2]
[406789973,1772195437237,-624.236157,0.00020186,7]
[406789974,1772195437247,-176.54,0.00020361,2]
[406789975,1772195437258,-177.4092433,0.00020517,2]
[406789976,1772195437267,-509.0,0.00020552,7]
[406789977,1772195437276,-6181.676601,0.00021005,7]
[406789978,1772195437286,-1101.272643,0.00021088,7]
[406789979,1772195437295,-1041.0,0.00021144,2]
[406789980,1772195437304,-5983.0,0.00021144,2]
[406789981,1772195437314,-250.0,0.00021172,5]
[406789982,1772195437323,-160.10219675,0.00021601,2]
[406789983,1772195437335,-353.32,0.00021918,30]
[406789984,1772195437345,-5000.0,0.00021918,2]
[406789985,1772195437354,-150.0,0.00021918,2]
[406789986,1772195437363,-250.27,0.00022,30]
[406789987,1772195437373,-921.0,0.00022166,2]
[406789988,1772195437382,-1211.0,0.00022166,2]
[406789989,1772195437391,-450.07220255,0.00022261,2]
[406789990,1772195437401,-1761.84729612,0.00022784,2]
[406789991,1772195437410,-27096.84747224,0.00022787,2]
[406789992,1772195437420,-152.8213546,0.00022789,2]
[406789993,1772195437429,-160.0,0.00023,2]
[406789994,1772195437438,-168.0,0.00023058,2]
[406789995,1772195437448,-500.0,0.00023096,2]
[406789996,1772195437457,-662.94329481,0.00023206,2]
[406789997,1772195437467,-1444.51,0.00023207,2]
[406789998,1772195437477,-509.0,0.00023383,9]
[406789999,1772195437487,-1843.18097405,0.00023448,2]
[406790000,1772195437496,-373.33,0.00023829,2]
[406790001,1772195437506,-353.32,0.00024081,30]
[406790002,1772195437515,-194.603,0.00024144,2]
[406790003,1772195437524,-2022.00864656,0.00024657,2]
[406790004,1772195437534,-150.0,0.00024658,2]
[406790005,1772195437543,-168.0,0.00024676,2]
[406790006,1772195437552,-500.0,0.00024685,2]
[406790007,1772195437561,-1500.0,0.000249,9]
[406790008,1772195437571,-921.0,0.00025166,2]
[406790009,1772195437580,-1211.0,0.00025166,2]
[406790010,1772195437589,-171.646,0.00025341,30]
[406790011,1772195437599,-10000.0,0.00025642,2]
[406790012,1772195437608,-1761.84729612,0.00025784,2]
[406790013,1772195437617,-27096.84747224,0.00025786,2]
[406790017,1772195437627,-307.5751693,0.0002579,2]
[406790018,1772195437781,-150.0,0.0002589,2]
[406790019,1772195437792,-250.27,0.00026011,30]
[406790020,1772195437801,-509.0,0.00026214,12]
[406790021,1772195437810,-353.32,0.00026244,30]
[406790022,1772195437820,-176.54,0.0002653,2]
[406790023,1772195437830,-152.8213546,0.00026587,2]
[406790024,1772195437839,-300.0,0.00026712,2]
[406790025,1772195437848,-1120.0,0.0002698,10]
[406790026,1772195437857,-705.0,0.0002698,10]
[406790027,1772195437867,-150.0,0.00027185,2]
[406790028,1772195437876,-203.69193972,0.00027527,2]
[406790029,1772195437886,-500.0,0.00027553,120]
[406790030,1772195437896,-52754.8,0.00027553,2]
[406790031,1772195437905,-1235.6,0.00027824,2]
[406790032,1772195437915,-12598.7547324,0.00027906,2]
[406790033,1772195437924,-14423.91207,0.00028006,30]
[406790034,1772195437934,-1337.16339586,0.00028065,2]
[406790035,1772195437943,-16526.12510422,0.00028065,2]
[406790036,1772195437953,-921.0,0.00028166,2]
[406790037,1772195437962,-1211.0,0.00028166,2]
[406790038,1772195437973,-353.32,0.00028407,30]
[406790039,1772195437983,-165.5,0.00028493,2]
[406790040,1772195437992,-150.0,0.00028544,2]
[406790041,1772195438001,-500.0,0.00028587,120]
[406790042,1772195438011,-662.94329481,0.00028755,2]
[406790043,1772195438020,-1761.84729612,0.00028784,2]
[406790044,1772195438029,-27096.84747224,0.00028785,2]
[406790045,1772195438038,-2000.0,0.00029,2]
[406790046,1772195438048,-509.0,0.00029044,14]
[406790047,1772195438057,-222.28872477,0.0002953,120]
[406790048,1772195438067,-209.99304853,0.0002953,120]
[406790049,1772195438077,-154.49167072,0.0002953,120]
[406790050,1772195438086,-518.0,0.00029671,2]
[406790051,1772195438100,-248.88,0.00029814,2]
[406790052,1772195438110,-500.0,0.00029945,2]
[406790053,1772195438119,-150.0,0.00029971,2]
[406790054,1772195438129,-250.27,0.00030023,60]
[406790055,1772195438141,-152.8213546,0.00030385,2]
[406790056,1772195438151,-5023.56372798,0.000304,2]
[406790057,1772195438161,-3636.28173638,0.000304,2]
[406790058,1772195438176,-1254.41808677,0.000304,2]
[406790059,1772195438189,-109.30017685,0.000304,2]
[406790060,1772195438199,-353.32,0.0003057,30]
[406790061,1772195438208,-250.0,0.00030759,25]
[406790062,1772195438218,-59.03982315,0.00030843,2]
[406790063,1772195438238,-189.84017685,0.00030843,2]
[406790065,1772195438247,-908.892,0.00031166,2]
[406790066,1772195438258,-1211.0,0.00031166,2]
[406790067,1772195438267,-66.48904503,0.0003147,2]
[406790068,1772195438576,-83.51095497,0.0003147,2]
[406790069,1772195438596,-885.97918406,0.00031784,2]
[406790070,1772195438619,-875.86811206,0.00031784,2]
[406790071,1772195438636,-27096.84747224,0.00031785,2]
[406790072,1772195438652,-568.0,0.00031816,2]
[406790073,1772195438672,-267.0,0.00031816,2]
[406790074,1772195438692,-1570.12213956,0.0003187,2]
[406790075,1772195438710,-248.88,0.00031871,2]
[406790076,1772195438727,-509.0,0.00031875,17]
[406790077,1772195438747,-719.47,0.000324,14]
[406790078,1772195438763,-2000.0,0.000327,2]
[406790079,1772195438780,-353.32,0.00032732,30]
[406790080,1772195438795,-2000.0,0.000328,7]
[406790081,1772195438810,-562.18013926,0.00032877,5]
[406790082,1772195438823,-375.95495348,0.00032877,5]
[406790083,1772195438839,-5515.33,0.000329,14]
[406790084,1772195438854,-7675.47,0.000329,14]
[406790085,1772195438869,-1309.1,0.000329,14]
[406790086,1772195438884,-500.0,0.00032977,120]
[406790087,1772195438898,-195806.9573834,0.00032978,2]
[406790088,1772195438913,-27500.1298384,0.00032978,2]
[406790089,1772195438928,-150.0,0.00033043,2]
[406790090,1772195438943,-176.54,0.00033234,2]
[406790091,1772195438959,-568.0,0.00033279,2]
[406790092,1772195438974,-150.0,0.00033279,2]
[406790093,1772195438990,-150.0,0.00033279,2]
[406790094,1772195439005,-150.0,0.00033279,2]
[406790095,1772195439020,-157.0,0.00033279,2]
[406790096,1772195439035,-2494.256,0.00033294,35]
[406790097,1772195439050,-254.298,0.00033294,35]
[406790098,1772195439064,-1000.0,0.000333,14]
[406790099,1772195439079,-500.0,0.00033553,120]
[406790100,1772195439096,-176.54,0.00033769,2]
[406790101,1772195439112,-1900.0,0.000339,12]
[406790102,1772195439125,-2158.42,0.00034,30]
[406790103,1772195439142,-252.77720625,0.00034,14]
[406790104,1772195439156,-250.27,0.00034035,60]
[406790105,1772195439171,-281.0,0.00034077,2]
[406790106,1772195439186,-1211.0,0.00034166,2]
[406790107,1772195439201,-152.8213546,0.00034183,2]
[406790108,1772195439217,-266.82262641,0.0003419,2]
[406790109,1772195439232,-151.0,0.00034197,14]
[406790110,1772195439247,-154.86311374,0.00034197,14]
[406790111,1772195439262,-500.0,0.00034199,120]
[406790112,1772195439276,-500.0,0.00034199,120]
[406790113,1772195439292,-300.0,0.00034199,10]
[406790114,1772195439307,-1500000.0,0.000342,2]
[406790115,1772195439322,-151.0,0.000342,31]
[406790116,1772195439337,-662.94329481,0.00034303,2]
[406790117,1772195439351,-322.5,0.00034308,2]
[406790118,1772195439367,-1309.1,0.000344,14]
[406790119,1772195439384,-1000.0,0.00034449,14]
[406790120,1772195439399,-344.0,0.00034459,2]
[406790121,1772195439414,-150.0,0.00034696,2]
[406790122,1772195439429,-509.0,0.00034706,19]
[406790123,1772195439446,-300.0,0.00034783,10]
[406790124,1772195439462,-27096.84747224,0.00034784,2]
[406790125,1772195439477,-1761.84729612,0.00034784,2]
[406790126,1772195439492,-1500.0,0.00034795,2]
[406790127,1772195439511,-150.0,0.00034857,30]
[406790128,1772195439526,-150.0,0.00034857,2]
[406790129,1772195439540,-300.0,0.00034883,10]